bitfinex-derivatives/quotes_SOLF0:USTF0_20250227
["timestamp","ask_amount","ask_price","bid_price","bid_amount"]
[1740674475111,7.2552,137.94,137.9,7.2569]
[1740674475415,0.05358719,137.93,137.91,0.04965049]
[1740674475715,7.2531,137.98,137.85,1.9934]
[1740674475917,1.8094,138.03,137.85,1.9934]
[1740674476218,7.2526,137.99,137.96,7.254]
[1740674476416,7.2526,137.99,137.85,1.9934]
[1740674476717,7.2526,137.99,137.95,7.2543]
[1740674477118,1.8094,138.03,137.91,0.04850741]
[1740674477318,0.04650849,137.98,137.87,12.04]
[1740674477617,93.5396448,138.07,137.96,0.04851174]
[1740674477812,93.5396448,138.07,138.02,7.2509]
[1740674478018,93.5396448,138.07,137.94,209.24]
[1740674478318,12.02302548,138.1,137.95,3.9376]
[1740674478817,0.05498041,138.04,138.01,0.04660506]
[1740674479213,7.2476,138.09,137.95,3.9376]
[1740674479612,0.04714761,138.04,138.01,0.05227077]
[1740674480115,0.04714761,138.04,138.03,7.2504]
[1740674480321,0.04714761,138.04,138.01,0.05227077]
[1740674481220,7.29734761,138.04,138.01,0.05227077]
[1740674482418,0.04714761,138.04,138.01,0.05227077]
[1740674483619,7.2509,138.02,138.01,0.05227077]
[1740674484520,7.253,137.98,137.95,3.8043]
[1740674484824,192.9591,138.05,137.94,197.2]
[1740674485117,192.9591,138.05,137.89,1.9774]
[1740674485118,7.2552,137.94,137.9,7.2571]
[1740674485322,192.9591,138.05,137.89,5.747]
[1740674485517,191.0,138.04,137.89,5.747]
[1740674485817,0.04681483,137.98,137.95,4.649e-05]
[1740674486019,12.04,137.97,137.86,227.10102036]
[1740674486225,13.85,137.97,137.86,227.10102036]
[1740674486521,7.2562,137.92,137.87,7.2585]
[1740674486923,13.85,137.97,137.86,227.10102036]
[1740674487124,0.04754062,137.91,137.88,0.0492628]
[1740674487324,7.255,137.95,137.89,7.2574]
[1740674487714,0.05443053,137.91,137.9,7.2572]
[1740674487921,12.04,137.97,137.86,227.10102036]
[1740674488320,12.04,137.97,137.92,7.2558]
[1740674488528,191.0,138.02,137.86,227.10102036]
[1740674488718,203.04,138.02,137.86,227.10102036]
[1740674489127,203.04,138.02,137.95,7.2545]
[1740674489324,1.923e-05,137.95,137.93,0.04986288]
[1740674489529,12.04,138.02,137.87,1.29873906]
[1740674490120,19.2913,138.02,137.95,7.2543]
[1740674490323,19.2913,138.02,137.86,209.2]
[1740674490526,0.04990679,138.0,137.97,0.05582344]
[1740674490727,0.04990679,138.0,137.87,1.29861895]
[1740674490728,19.2913,138.02,137.96,7.2538]
[1740674490928,0.0525751,138.0,137.97,0.04698462]
[1740674492631,0.0525751,138.0,137.99,7.2525]
[1740674492932,0.0525751,138.0,137.88,14.5159]
[1740674493232,1.81,138.04,137.89,1.29838174]
[1740674493532,9.1274,138.06,138.0,7.2519]
[1740674493933,0.05417614,138.04,138.02,0.05353198]
[1740674494136,1.8784,138.06,137.93,12.04]
[1740674494331,0.04579457,138.04,138.02,0.04814878]
[1740674494536,7.2484,138.07,137.93,12.04]
[1740674494736,0.05445847,138.04,138.02,0.05239866]
[1740674494937,13.8527,138.09,137.93,12.04]
[1740674495138,0.05584293,138.04,138.02,0.04862987]
[1740674495338,13.9592,138.12,138.02,0.04862987]
[1740674495637,7.2476,138.09,137.98,5.834]
[1740674495834,0.05456325,138.08,138.06,0.05417351]
[1740674496034,7.2473,138.09,137.98,5.834]
[1740674496231,7.2473,138.09,138.06,0.05256373]
[1740674496438,7.2473,138.09,137.98,5.834]
[1740674496439,0.05094384,138.05,137.98,5.834]
[1740674496640,7.2468,138.1,137.98,5.834]
[1740674496939,13.9592,138.12,138.0,0.05435384]
[1740674496940,4.997e-05,138.03,138.0,0.05435384]
[1740674497140,7.2473,138.09,138.05,7.2493]
[1740674497342,1.9192,138.12,138.05,7.2493]
[1740674497538,1.9192,138.12,137.98,5.834]
[1740674497737,7.2466,138.11,138.06,7.2485]
[1740674498237,7.2475,138.09,138.07,0.05045829]
[1740674498439,7.2475,138.09,138.04,7.2496]
[1740674498642,0.05180734,138.09,138.07,0.04915831]
[1740674498845,7.29930734,138.09,138.07,0.04915831]
[1740674499645,0.05180734,138.09,138.07,0.04915831]
[1740674500940,0.05180734,138.09,138.07,7.29725831]
[1740674501146,0.05180734,138.09,138.07,0.04915831]
[1740674502147,0.05180734,138.09,138.07,7.29735831]
[1740674503244,0.05180734,138.09,138.08,7.2478]
[1740674504241,0.05180734,138.09,138.07,0.04915831]
[1740674504742,33.81180734,138.09,137.98,5.834]
[1740674504948,1.9558,138.08,137.98,5.834]
[1740674505141,7.2494,138.05,137.98,5.834]
[1740674505344,1.9558,138.08,137.98,5.834]
[1740674505541,7.2498,138.05,137.98,5.834]
[1740674505747,0.05194812,138.03,138.01,7.2512]
[1740674505946,0.05194812,138.03,138.0,0.04697192]
[1740674506344,0.05194812,138.03,138.01,7.2515]
[1740674506747,0.05194812,138.03,138.0,0.04697192]
[1740674506943,0.05194812,138.03,138.0,7.29857192]
[1740674507343,0.05194812,138.03,138.0,0.04697192]
[1740674507946,12.04,138.02,137.95,80.42980388]
[1740674508248,1.8639,138.01,137.95,80.42980388]
[1740674508445,7.2529,137.99,137.95,80.42980388]
[1740674509044,0.04578868,137.99,137.96,0.04746523]
[1740674510549,7.29838868,137.99,137.96,0.04746523]
[1740674510750,0.04578868,137.99,137.96,0.04746523]
[1740674511141,7.2536,137.97,137.96,0.04746523]
[1740674511343,0.04578868,137.99,137.9,1.8911]
[1740674511547,0.2049,138.01,137.9,9.1483]
[1740674511748,7.2549,137.95,137.9,9.1483]
[1740674512146,7.2543,137.96,137.91,7.2565]
[1740674512350,0.2049,138.01,137.91,7.2565]
[1740674512553,0.05251935,137.95,137.9,1.8911]
[1740674512753,0.05251935,137.95,137.87,197.08]
[1740674513056,12.09251935,137.95,137.87,197.08]
[1740674513351,7.2565,137.92,137.88,7.2582]
[1740674513552,12.04,137.95,137.87,197.08]
[1740674513752,19.295,137.95,137.91,7.2565]
[1740674514159,0.05534801,137.92,137.91,7.2565]
[1740674514953,0.05534801,137.92,137.87,197.08]
[1740674516055,0.05534801,137.92,137.91,7.2567]
[1740674518158,1.6697,138.0,137.9,0.04821648]
[1740674518362,1.6697,138.0,137.87,197.08]
[1740674518551,1.6697,138.0,137.92,7.2557]
[1740674518755,1.6697,138.0,137.87,197.08]
[1740674519157,0.04919259,137.95,137.92,7.30847288]
[1740674519861,0.04919259,137.95,137.92,0.05277288]
[1740674520856,7.2557,137.93,137.92,0.05277288]
[1740674521160,0.04919259,137.95,137.87,197.08]
[1740674521360,7.257,137.91,137.87,204.3387]
[1740674521561,12.04,137.96,137.87,204.3387]
[1740674521963,12.04,137.96,137.87,197.08]
[1740674522262,0.05462075,137.93,137.84,1.9204]
[1740674522457,7.2588,137.88,137.84,1.9204]
[1740674522662,0.0462871,137.9,137.84,1.9204]
[1740674523258,0.0462871,137.9,137.81,1.8572]
[1740674523460,2.3063,137.95,137.81,3.7988]
[1740674523764,0.04873417,137.87,137.81,3.7988]
[1740674525264,203.1536701,138.11,137.89,7.2575]
[1740674525265,12.04,137.97,137.89,7.2575]
[1740674525663,12.04,137.97,137.81,3.7988]
[1740674525859,12.04,137.97,137.82,26.5626]
[1740674526064,7.2543,137.96,137.82,12.04]
[1740674526358,0.05165343,137.91,137.88,0.05493117]
[1740674526556,7.2538,137.97,137.88,0.05493117]
[1740674526763,13.936,138.02,137.84,1.29903436]
[1740674526963,13.936,138.02,137.95,7.2543]
[1740674527161,7.2528,137.99,137.84,207.5203]
[1740674527360,7.2528,137.99,137.85,1.29889894]
[1740674527560,13.936,138.02,137.85,1.29889894]
[1740674527761,0.04915503,137.93,137.92,7.2562]
[1740674527963,7.2532,137.98,137.92,1.8935]
[1740674528162,1.896,138.02,137.92,1.8935]
[1740674528559,7.2527,137.99,137.94,7.2549]
[1740674529161,7.30448183,137.98,137.95,0.05294233]
[1740674529356,0.05108183,137.98,137.95,0.05294233]
[1740674529561,7.2541,137.96,137.95,0.05294233]
[1740674529759,0.05108183,137.98,137.89,197.24]
[1740674530068,1.896,138.02,137.89,197.24]
[1740674530270,1.896,138.02,137.89,204.4976]
[1740674530469,1.896,138.02,137.89,197.24]
[1740674530666,191.0,138.01,137.89,197.24]
[1740674530866,0.04586611,137.97,137.94,0.04883324]
[1740674531067,12.04,137.96,137.94,0.04883324]
[1740674531572,7.2546,137.95,137.94,0.04883324]
[1740674532072,28.9946,137.95,137.94,0.04883324]
[1740674532772,21.74,137.95,137.89,197.24]
[1740674532967,12.04,137.96,137.87,3.8658]
[1740674533374,1.9349,137.95,137.87,3.8658]
[1740674534073,0.05373226,137.92,137.9,0.05348155]
[1740674534776,7.2567,137.91,137.9,0.05348155]
[1740674535279,21.76,137.91,137.82,1.9638]
[1740674535466,16.4452,137.95,137.82,9.2252]
[1740674535876,1.9349,137.95,137.85,7.2596]
[1740674536171,0.04689908,137.91,137.82,1.9638]
[1740674536376,12.04,137.96,137.89,7.2577]
[1740674536575,0.04946516,137.88,137.82,1.9638]
[1740674536775,12.04,137.96,137.82,1.9638]
[1740674537771,203.04,137.96,137.82,1.9638]
[1740674537974,7.31068415,137.9,137.88,0.05167515]
[1740674538171,0.2629,137.95,137.88,0.05167515]
[1740674538471,0.0535549,137.9,137.88,0.05167515]
[1740674538675,0.2629,137.95,137.88,0.05167515]
[1740674538870,1.9896,137.91,137.82,1.9638]
[1740674539178,1.9896,137.91,137.8,3.9037]
[1740674539570,7.2592,137.87,137.8,3.9037]
[1740674539773,12.04,137.88,137.77,7.2639]
[1740674539971,7.2607,137.84,137.76,1.9023]
[1740674540176,12.04,137.88,137.77,7.2638]
[1740674540378,0.04830126,137.81,137.77,7.2638]
[1740674540673,12.04,137.88,137.76,1.9023]
[1740674540879,0.05219022,137.8,137.76,1.9023]
[1740674541071,0.05123292,137.79,137.76,1.9023]
[1740674541269,0.2634,137.87,137.76,1.9023]
[1740674541471,0.04909633,137.79,137.76,1.9023]
[1740674541672,0.2634,137.87,137.76,1.9023]
[1740674541872,0.05352635,137.79,137.78,7.2632]
[1740674542070,12.04,137.88,137.76,1.9023]
[1740674543281,3.435e-05,137.83,137.81,0.04814612]
[1740674543469,3.435e-05,137.83,137.82,7.2613]
[1740674543669,7.2557,137.93,137.82,1.9321]
[1740674543875,42.21830193,137.95,137.82,1.9321]
[1740674544074,42.21830193,137.95,137.83,1.9632]
[1740674544570,0.05173102,137.9,137.88,0.05323385]
[1740674544970,12.04,137.89,137.83,1.9632]
[1740674545171,12.04,137.89,137.8,197.34]
[1740674545585,12.04,137.89,137.81,5.9329]
[1740674545780,12.04,137.89,137.85,7.2597]
[1740674546077,0.05274357,137.88,137.86,0.04694482]
[1740674547175,7.31134357,137.88,137.86,0.04694482]
[1740674547582,0.05274357,137.88,137.86,0.04694482]
[1740674548184,12.04,137.94,137.86,0.04694482]
[1740674548382,12.04,137.94,137.81,5.9329]
[1740674549279,7.2557,137.93,137.81,5.9329]
[1740674549482,0.04622395,137.89,137.86,0.04608707]
[1740674549780,0.04622395,137.89,137.88,7.2583]
[1740674549981,0.04622395,137.89,137.86,0.04608707]
[1740674550381,0.04622395,137.89,137.86,7.30528707]
[1740674550581,0.04622395,137.89,137.86,0.04608707]
[1740674551283,0.04622395,137.89,137.86,7.30528707]
[1740674552177,0.04622395,137.89,137.86,0.04608707]
[1740674552584,12.04,137.94,137.86,0.04608707]
[1740674552883,19.2953,137.94,137.9,7.2571]
[1740674553181,12.04,137.94,137.81,3.8953]
[1740674553777,0.05560852,137.89,137.86,0.04769118]
[1740674554179,12.04,137.94,137.86,0.04769118]
[1740674555081,2.0127,137.98,137.86,0.04769118]
[1740674555290,0.04775333,137.91,137.81,3.8953]
[1740674555477,40.21490193,138.03,137.91,0.04916806]
[1740674555677,12.04,138.02,137.82,1.29925864]
[1740674555977,7.2522,138.0,137.82,194.29925864]
[1740674556181,40.21490193,138.03,137.83,1.29925864]
[1740674556381,40.21490193,138.04,137.84,1.45095763]
[1740674556581,7.2506,138.03,137.85,1.29925864]
[1740674556786,1.225e-05,137.94,137.92,0.05504491]
[1740674556979,1.225e-05,137.94,137.92,197.37504491]
[1740674557287,7.2506,138.03,137.99,7.2523]
[1740674557584,7.2518,138.01,137.97,7.2532]
[1740674557985,0.05421952,138.0,137.98,0.04613264]
[1740674559886,7.2525,137.99,137.98,0.04613264]
[1740674560097,0.05421952,138.0,137.98,0.04613264]
[1740674560987,7.30661952,138.0,137.98,0.04613264]
[1740674561489,12.04,138.08,137.98,0.04613264]
[1740674561686,12.04,138.12,138.02,7.2504]
[1740674562089,7.2488,138.07,137.94,2.0122]
[1740674562388,12.04,138.12,137.94,195.0122]
[1740674562689,0.04999167,138.04,138.02,0.05519097]
[1740674562997,7.2476,138.09,138.05,7.2488]
[1740674563895,7.2469,138.1,138.06,7.2488]
[1740674564093,0.05463372,138.08,138.06,7.29568483]
[1740674564492,0.05463372,138.08,138.07,7.2483]
[1740674565006,0.05463372,138.08,138.06,0.04688483]
[1740674566400,7.2483,138.07,138.06,0.04688483]
[1740674567207,7.2503,138.04,137.95,12.04]
[1740674567701,191.0,138.12,138.01,7.251]
[1740674567909,0.5163,138.11,138.01,7.251]
[1740674568101,7.2492,138.06,138.01,7.251]
[1740674568296,0.05429583,138.07,138.05,0.05451169]
[1740674568502,0.5163,138.11,138.05,0.04857473]
[1740674568805,0.04725843,138.07,138.05,0.04857473]
[1740674569308,0.04725843,138.07,138.05,7.29777473]
[1740674569709,0.04725843,138.07,138.05,0.04857473]
[1740674569912,0.04725843,138.07,138.05,7.29787473]
[1740674570212,0.04725843,138.07,138.05,0.04857473]
[1740674570598,26.46832527,138.0,137.95,12.04]
[1740674570802,1.9576,138.13,137.95,12.04]
[1740674571207,7.248,138.08,137.98,7.2529]
[1740674571701,1.9576,138.13,137.98,7.2529]
[1740674571907,1.9576,138.13,138.02,0.04715463]
[1740674572209,0.04856809,138.07,137.95,12.04]
[1740674572520,1.9576,138.13,138.02,7.2509]
[1740674572809,0.04829748,138.09,138.03,2.034]
[1740674573009,0.04829748,138.09,138.05,0.04661289]
[1740674573413,7.29559748,138.09,138.05,0.04661289]
[1740674573610,0.04829748,138.09,138.05,0.04661289]
[1740674574507,7.2486,138.07,138.05,0.04661289]
[1740674574810,0.04829748,138.09,138.05,0.04661289]
[1740674575006,7.2488,138.06,138.05,0.04661289]
[1740674579611,7.2488,138.06,138.05,1.289e-05]
[1740674579811,12.02,138.07,138.05,1.289e-05]
[1740674580315,7.2488,138.06,138.05,1.289e-05]
[1740674580514,0.04829748,138.09,138.05,1.289e-05]
[1740674581418,7.2488,138.06,138.05,1.289e-05]
[1740674581818,0.04829748,138.09,138.05,1.289e-05]
[1740674582019,7.2483,138.07,138.05,1.289e-05]
[1740674582415,0.04829748,138.09,138.05,1.289e-05]
[1740674583109,7.2485,138.07,138.05,1.289e-05]
[1740674583511,7.2488,138.06,138.05,1.289e-05]
[1740674585822,7.2486,138.07,138.05,1.289e-05]
[1740674586019,0.04829748,138.09,138.05,1.289e-05]
[1740674587522,7.2486,138.07,138.05,1.289e-05]
[1740674589023,0.04829748,138.09,138.05,1.289e-05]
[1740674589325,7.2486,138.07,138.05,1.289e-05]
[1740674589524,0.04829748,138.09,138.05,1.289e-05]
[1740674589827,7.29579748,138.09,138.05,1.289e-05]
[1740674590225,0.04829748,138.09,138.05,1.289e-05]
[1740674591123,7.2488,138.06,138.05,1.289e-05]
[1740674592425,2.0375,138.08,138.05,1.289e-05]
[1740674592629,7.2483,138.07,138.05,1.289e-05]
[1740674592829,2.0375,138.08,138.05,1.289e-05]
[1740674593224,7.2488,138.06,138.05,1.289e-05]
[1740674594631,2.0375,138.08,138.05,1.289e-05]
[1740674594828,0.04829748,138.09,138.05,1.289e-05]
[1740674595130,0.04829748,138.09,138.06,7.2485]
[1740674596130,0.04829748,138.09,138.05,1.289e-05]
[1740674596433,0.04829748,138.09,138.08,7.2478]
[1740674596824,0.04829748,138.09,138.05,1.289e-05]
[1740674598229,0.04829748,138.09,138.06,7.2487]
[1740674598431,0.04829748,138.09,138.05,1.289e-05]
[1740674599538,0.04829748,138.09,138.07,7.248]
[1740674600731,0.04829748,138.09,138.05,1.289e-05]
[1740674601134,12.06829748,138.09,138.05,1.289e-05]
[1740674601438,7.2488,138.06,138.05,1.289e-05]
[1740674603236,1.9174,138.08,138.05,1.289e-05]
[1740674603428,7.2486,138.07,138.05,1.289e-05]
[1740674604030,7.248,138.08,138.05,1.289e-05]
[1740674604635,7.29579748,138.09,138.05,1.289e-05]
[1740674604830,0.04829748,138.09,138.05,1.289e-05]
[1740674605341,0.04829748,138.09,138.06,7.2485]
[1740674606239,0.04829748,138.09,138.07,7.2483]
[1740674607739,0.04829748,138.09,138.05,1.289e-05]
[1740674608139,7.2488,138.06,138.05,1.289e-05]
[1740674608341,0.04829748,138.09,138.05,1.289e-05]
[1740674608740,7.2486,138.07,138.05,1.289e-05]
[1740674609042,0.04829748,138.09,138.05,1.289e-05]
[1740674609444,7.2487,138.07,138.05,1.289e-05]
[1740674610954,0.04829748,138.09,138.05,1.289e-05]
[1740674611149,7.2488,138.06,138.05,1.289e-05]
[1740674613553,0.04829748,138.09,138.05,1.289e-05]
[1740674613554,7.2485,138.07,138.05,1.289e-05]
[1740674613848,0.04829748,138.09,138.05,1.289e-05]
[1740674614043,0.04829748,138.09,138.05,7.24901289]
[1740674614248,0.04829748,138.09,138.05,1.289e-05]
[1740674615046,0.04829748,138.09,138.08,7.2478]
[1740674615548,0.04829748,138.09,138.05,1.289e-05]
[1740674615850,0.04829748,138.09,138.07,7.248]
[1740674616149,0.04829748,138.09,138.05,1.289e-05]
[1740674616348,0.04829748,138.09,138.08,7.2478]
[1740674616539,12.08992548,138.16,138.05,1.289e-05]
[1740674616741,10.05372548,138.16,138.01,2.0409]
[1740674617038,10.05372548,138.16,138.02,14.5013]
[1740674617350,7.2444,138.15,138.12,7.2456]
[1740674617551,10.05372548,138.16,138.02,14.5013]
[1740674617746,0.04587691,138.15,138.12,0.05009171]
[1740674618052,7.29457564,138.15,138.12,7.2974655]
[1740674618951,7.29457564,138.15,138.12,0.0520655]
[1740674619347,7.245,138.14,138.12,0.0520655]
[1740674619547,0.05037564,138.15,138.12,0.0520655]
[1740674619946,7.29487564,138.15,138.12,0.0520655]
[1740674620347,7.29487564,138.15,138.12,7.2976655]
[1740674620650,7.2446,138.14,138.12,0.0520655]
[1740674621349,0.05037564,138.15,138.12,0.0520655]
[1740674622152,0.05037564,138.15,138.13,7.2449]
[1740674622347,0.05037564,138.15,138.12,0.0520655]
[1740674623451,0.05037564,138.15,138.13,7.2449]
[1740674624749,0.05037564,138.15,138.12,0.0520655]
[1740674624952,0.05037564,138.15,138.14,7.2446]
[1740674627265,2.0034,138.25,138.19,7.242]
[1740674627560,2.0034,138.25,138.1,197.0]
[1740674627561,2.0034,138.25,138.15,4.0434]
[1740674628358,7.2418,138.2,138.19,0.04718848]
[1740674628558,0.04629697,138.21,138.19,0.04718848]
[1740674629358,7.2433,138.17,138.14,7.2443]
[1740674629554,2.0034,138.25,138.1,197.0]
[1740674630061,7.2423,138.19,138.1,197.0]
[1740674630256,2.0034,138.25,138.1,197.0]
[1740674630456,0.05416821,138.16,138.13,0.0526794]
[1740674630660,14.4789,138.24,138.1,197.0]
[1740674630860,0.05396473,138.16,138.13,0.04990406]
[1740674631057,14.4789,138.24,138.1,197.0]
[1740674631266,0.05022255,138.16,138.13,0.05117964]
[1740674631465,212.75,138.24,138.1,197.0]
[1740674631652,0.04968422,138.16,138.13,0.04697335]
[1740674631855,12.02,138.19,138.1,197.0]
[1740674632059,7.2448,138.14,138.13,0.05169167]
[1740674632357,0.05439065,138.16,138.13,0.05169167]
[1740674632665,7.2446,138.14,138.13,0.05169167]
[1740674633362,7.2444,138.15,138.13,0.05169167]
[1740674633868,0.05439065,138.16,138.13,0.05169167]
[1740674634466,7.2446,138.14,138.13,0.05169167]
[1740674635361,0.05439065,138.16,138.14,7.2443]
[1740674635566,0.05439065,138.16,138.13,0.05169167]
[1740674635970,0.05439065,138.16,138.14,7.2444]
[1740674636766,0.05439065,138.16,138.13,0.05169167]
[1740674636962,0.05439065,138.16,138.15,7.2441]
[1740674638271,9.065e-05,138.16,138.15,7.2441]
[1740674638877,9.065e-05,138.16,138.15,11.0433]
[1740674640779,9.065e-05,138.16,138.15,1.9515]
[1740674641579,9.065e-05,138.16,138.15,9.1956]
[1740674641777,9.065e-05,138.16,138.13,0.05169167]
[1740674642076,9.065e-05,138.16,138.08,2.0052]
[1740674642279,9.065e-05,138.16,138.07,1.9856]
[1740674642280,9.065e-05,138.16,138.06,39.94395029]
[1740674642477,194.6319,138.19,138.06,39.94395029]
[1740674642680,7.2457,138.12,138.06,39.94395029]
[1740674643079,7.2454,138.13,138.09,7.2468]
[1740674643285,0.04631334,138.1,138.09,7.2468]
[1740674643483,0.04631334,138.1,138.08,0.04881952]
[1740674643484,194.6319,138.19,138.06,39.94395029]
[1740674643686,7.30072838,138.11,138.08,0.05258616]
[1740674643879,7.2466,138.11,138.07,7.2481]
[1740674644079,7.29907144,138.11,138.08,0.04705189]
[1740674644482,7.2468,138.1,138.08,0.04705189]
[1740674644681,0.05247144,138.11,138.08,0.04705189]
[1740674645083,7.2473,138.09,138.08,0.04705189]
[1740674646082,7.2469,138.1,138.08,0.04705189]
[1740674646980,7.2473,138.09,138.08,0.04705189]
[1740674649091,0.05247144,138.11,138.08,0.04705189]
[1740674649284,0.05247144,138.11,138.1,7.2467]
[1740674649997,13.9483,138.18,138.09,1.9769]
[1740674650192,7.2426,138.18,138.15,7.2439]
[1740674650585,25.98712548,138.22,138.17,7.2431]
[1740674650586,7.2417,138.2,138.17,7.2431]
[1740674651187,7.29637186,138.2,138.17,0.05453275]
[1740674651787,0.05467186,138.2,138.17,0.05453275]
[1740674652491,7.242,138.19,138.17,0.05453275]
[1740674653196,7.29637186,138.2,138.17,7.29753275]
[1740674653495,0.05467186,138.2,138.17,7.29753275]
[1740674653892,7.29627186,138.2,138.17,7.29753275]
[1740674654090,7.29627186,138.2,138.17,0.05453275]
[1740674654285,7.2425,138.18,138.17,0.05453275]
[1740674656892,0.05467186,138.2,138.11,1.9406]
[1740674657092,7.2444,138.15,138.11,1.9406]
[1740674657494,7.2444,138.15,138.12,7.2455]
[1740674658096,0.05427989,138.15,138.12,0.04788718]
[1740674658790,7.2452,138.13,138.12,0.04788718]
[1740674661698,0.05427989,138.15,138.12,0.04788718]
[1740674662093,0.05427989,138.15,138.13,7.2451]
[1740674662293,7.29837989,138.15,138.12,0.04788718]
[1740674662499,0.05427989,138.15,138.12,0.04788718]
[1740674662899,7.29837989,138.15,138.12,7.29328718]
[1740674663202,0.05427989,138.15,138.12,0.04788718]
[1740674664209,7.29867989,138.15,138.12,7.29328718]
[1740674664400,0.05427989,138.15,138.12,0.04788718]
[1740674664600,7.29867989,138.15,138.12,7.29328718]
[1740674664802,0.05427989,138.15,138.12,0.04788718]
[1740674665205,7.2418,138.2,138.17,7.2428]
[1740674665404,7.2418,138.2,138.12,0.04788718]
[1740674665405,1.8916,138.22,138.13,3.8486]
[1740674665703,1.8916,138.22,138.15,7.244]
[1740674666098,1.8916,138.22,138.13,3.8486]
[1740674666297,0.05080111,138.2,138.17,0.05403843]
[1740674667005,0.05080111,138.2,138.19,7.242]
[1740674667705,0.05080111,138.2,138.17,0.05403843]
[1740674668208,0.05080111,138.2,138.19,7.242]
[1740674668602,7.29270111,138.2,138.17,0.05403843]
[1740674668905,0.05080111,138.2,138.17,0.05403843]
[1740674669305,7.2425,138.18,138.17,0.05403843]
[1740674669711,7.2422,138.19,138.17,0.05403843]
[1740674670324,7.2425,138.18,138.17,0.05403843]
[1740674672107,1.98110111,138.2,138.1,2.0468]
[1740674672311,1.9303,138.2,138.1,2.0468]
[1740674672912,7.2439,138.16,138.1,2.0468]
[1740674673315,0.05490117,138.14,138.12,7.29886676]
[1740674673713,0.05490117,138.14,138.12,0.05346676]
[1740674673913,0.05490117,138.14,138.13,7.2452]
[1740674674412,12.0,138.21,138.15,7.2439]
[1740674674413,7.2428,138.18,138.15,7.2439]
[1740674674613,12.0,138.21,138.1,2.0468]
[1740674675011,12.0,138.21,138.13,7.2449]
[1740674675413,0.04735802,138.18,138.16,0.04638935]
[1740674676015,7.2431,138.17,138.16,0.04638935]
[1740674679820,7.2431,138.17,138.16,8.935e-05]
[1740674681421,28.9631,138.17,138.16,8.935e-05]
[1740674681722,32.8753,138.17,138.16,8.935e-05]
[1740674682525,54.6253,138.17,138.16,8.935e-05]
[1740674682724,55.95725705,138.17,138.16,8.935e-05]
[1740674682927,7.2488,138.06,138.05,10.00292993]
[1740674684925,0.04810755,138.07,138.04,0.05569898]
[1740674685130,7.2494,138.05,138.04,0.05569898]
[1740674685632,7.2491,138.06,138.04,0.05569898]
[1740674686226,7.29660755,138.07,138.04,0.05569898]
[1740674688932,7.29660755,138.07,138.04,7.30549898]
[1740674689136,7.29660755,138.07,138.04,0.05569898]
[1740674689334,7.2494,138.05,138.04,0.05569898]
[1740674690344,21.74,138.05,137.93,39.94395029]
[1740674690625,212.75,138.09,137.94,1.9542]
[1740674690626,3.7607,138.06,137.94,1.9542]
[1740674690832,7.2534,137.98,137.94,1.9542]
[1740674691031,12.0,138.02,137.93,41.79005029]
[1740674691431,7.2544,137.96,137.93,41.79005029]
[1740674691935,7.3079563,137.96,137.93,39.99222596]
[1740674693032,0.0535563,137.96,137.93,39.99222596]
[1740674693228,7.2551,137.94,137.93,39.99222596]
[1740674693634,0.0535563,137.96,137.93,39.99222596]
[1740674694434,7.2547,137.95,137.93,39.99222596]
[1740674694836,0.0535563,137.96,137.93,39.99222596]
[1740674695035,0.0535563,137.96,137.93,0.04827567]
[1740674695934,12.0,138.03,137.93,0.04827567]
[1740674696135,7.2519,138.01,137.95,7.2541]
[1740674696534,12.0,138.03,137.95,7.2541]
[1740674696735,12.0,138.03,137.9,1.9542]
[1740674697037,12.0,138.03,137.94,7.2549]
[1740674697230,0.04831533,137.98,137.95,0.04889322]
[1740674697426,0.04831533,137.98,137.95,7.30349322]
[1740674698838,7.2536,137.97,137.95,0.04889322]
[1740674699034,0.04831533,137.98,137.95,0.04889322]
[1740674699537,7.2541,137.96,137.95,9.322e-05]
[1740674701034,19.2741,137.96,137.95,9.322e-05]
[1740674701340,41.0141,137.96,137.95,9.322e-05]
[1740674701526,19.2741,137.96,137.95,9.322e-05]
[1740674701730,0.04831533,137.98,137.95,9.322e-05]
[1740674702831,0.04831533,137.98,137.96,7.2538]
[1740674703033,0.04831533,137.98,137.96,2.0351]
[1740674703529,0.04831533,137.98,137.95,9.322e-05]
[1740674703730,7.2541,137.96,137.95,9.322e-05]